Cogmind - Beta 15 @@@ ROGUE MODE // 2025.08.27 @ 22:20:21 Player: BVrutally Odd Result: Destroyed by QU-O3Q(R) with Subdweller Machine Gun Performance ------------- Evolutions (0) 0 Regions Visited (2) 400 Robots Destroyed (42) 210 Value Destroyed (925) 925 Prototype IDs (11) 220 Alien Tech Used (0) 0 Bonus (0) 0 TOTAL SCORE: 1755 Bonus ------- None Cogmind --------- Core Integrity 0/250 Matter 300/300 Energy 96/100 System Corruption 0% Temperature Cool (2) Movement Treading (240) Ox1 Location -10/Subcaves Parts ------- > --- POWER (1) -------- (None) > --- PROPULSION (2) --- Improved Treads Improved Treads > --- UTILITY (2) ------ Huge Storage Unit Seismic Detector > --- WEAPON (2) ------- Subdweller Laser Subdweller Laser > --- INVENTORY (25) --- Subdweller Power Source Subdweller Power Source Subdweller Power Source Light Treads Light Treads Light Treads Light Treads Light Treads Light Treads Spiked Treads Subdweller Monowheel Subdweller Optics Power Bank Subdweller Laser Subdweller Laser Battle Cannon Grenade Launcher Grenade Launcher Grenade Launcher Grenade Launcher Subdweller Shrapnel Launcher Subdweller Shrapnel Launcher Subdweller Shrapnel Launcher Multitool Makeshift Hammer Peak State ------------ > --- POWER ------------ Ion Engine > --- PROPULSION ------- Improved Treads Improved Treads > --- UTILITY ---------- Huge Storage Unit Makeshift Hacking Suite > --- WEAPON ----------- Subdweller Laser Battle Rifle > --- INVENTORY -------- Light Ion Engine Subdweller Power Source Subdweller Power Source Light Treads Light Treads Light Treads Light Treads Light Treads Light Treads Improved Treads Improved Treads Subdweller Monowheel Seismic Detector EM Pulse Gun Subdweller Laser Subdweller Laser Subdweller Laser Battle Cannon Grenade Launcher Grenade Launcher Grenade Launcher Grenade Launcher Subdweller Shrapnel Launcher Subdweller Shrapnel Launcher [Rating: 17] Favorites ----------- Power Ion Engine Engine Ion Engine Propulsion Improved Treads Treads Improved Treads Utility Seismic Detector Device Seismic Detector Storage Huge Storage Unit Hackware Makeshift Hacking Suite Protection Light Armor Plating Weapon Subdweller Laser Energy Gun Subdweller Laser Ballistic Gun Assault Rifle Launcher Grenade Launcher Build | -11 -10 -10 ------- Run | Yrd Mat Sub Slots Evolved . | . . . Power . | . . . Propulsion . | . . . Utility . | . . . Weapon . | . . . Parts Attached 32 | 9 6 17 Power 3 | 2 . 1 Engine 3 | 2 . 1 Core . | . . . Reactor . | . . . Propulsion 7 | 2 2 3 Treads 7 | 2 2 3 Leg . | . . . Wheel . | . . . Hover . | . . . Flight . | . . . Utility 8 | 3 3 2 Device 2 | 2 . . Storage 4 | 1 3 . Processor . | . . . Hackware 1 | . . 1 Protection 1 | . . 1 Artifact . | . . . Weapon 14 | 2 1 11 Energy Gun 9 | . . 9 Energy Cannon . | . . . Ballistic Gun 3 | 2 . 1 Ballistic Cannon . | . . . Launcher 2 | . 1 1 Special Weapon . | . . . Impact Weapon . | . . . Slashing Weapon . | . . . Piercing Weapon . | . . . Special Melee Weapon . | . . . Unidentified Prototypes . | . . . Parts Lost 8 | . . 8 Power 2 | . . 2 Propulsion 2 | . . 2 Utility . | . . . Weapon 4 | . . 4 Highest Loss Streak 2 | . . 2 To Critical Strikes 2 | . . 2 Average Backups 18 | 3 10 21 Power 2 | . 1 2 Propulsion 7 | 1 5 7 Utility . | . . 1 Weapon 8 | . 4 9 Tool/Special . | . . . Unused Backups 21 | . 4 17 Power 2 | . . 2 Propulsion 7 | . 2 5 Utility 2 | . . 2 Weapon 9 | . 2 7 Tool/Special 1 | . . 1 Average Slot Usage (%) 98 | . 100 98 Engine 12 | . 14 12 Treads 27 | . 28 27 Device 13 | . 14 13 Storage 14 | . 14 14 Energy Gun 19 | . . 24 Ballistic Gun 8 | . 27 3 Peak Build Rating 17 | 7 11 17 Average Rating 12 | 5 9 13 On Entrance 6 | . 7 11 Naked Turns . | . . . Heaviest Build 96 | 15 90 96 Greatest Support 46 | 40 46 46 Greatest Overweight (x) 2 | . 1 2 Average Overweight (x) . | . . 1 Largest Inventory Capacity 25 | 8 25 25 Average Capacity 22 | 7 15 25 Most Carried 25 | 4 18 25 Average Carried 18 | 3 10 21 Final Capacity 25 | 8 25 25 Final Carried 25 | 4 18 25 Class Distribution -------------------- 100% | Mutant Dominant Class ---------------- Mutant | -10/Materials Mutant | -10/Subcaves Resources | -11 -10 -10 ----------- Run | Yrd Mat Sub Matter Collected 1132 | 458 278 396 Remotely 51 | 51 . . Salvage Created 1541 | 270 566 705 Parts 105 | 26 33 46 Haulers Intercepted 2 | . 2 . Recyclers Shooed . | . . . Parts Field Recycled . | . . . Retrieved Matter . | . . . Parts Self-Destructed 4 | . . 4 Prevented . | . . . Kills | -11 -10 -10 ------- Run | Yrd Mat Sub Combat Hostiles Destroyed 26 | . 9 17 Guns 26 | . 9 17 Classes Destroyed 10 | 3 3 4 Worker 3 | 2 1 . Tunneler 8 | 7 1 . Hauler 2 | . 2 . Recycler 2 | 1 1 . Turret 1 | . . 1 Swarmer 7 | . 3 4 Grunt 6 | . 6 . Artisan 1 | . . 1 Cobbler 1 | . . 1 Subdweller 13 | . . 13 Best Kill Streak 4 | 4 4 3 Combat Bots Only 3 | . 3 3 Max Kills in Single Turn 2 | 1 2 1 Gunslinging 1 | . 1 . Exploded . | . . . Melee . | . . . Uniques/NPCs Destroyed . | . . . Combat | -11 -10 -10 -------- Run | Yrd Mat Sub Hostile Shots Fired 130 | . 33 97 Missed 35 | . 8 27 Hits 95 | . 25 70 Projectile 95 | . 25 70 AOE 3 | . . 3 Critical Strikes 4 | . . 4 Damage Taken 1477 | . 305 1172 Core 264 | . 8 256 Absorbed by Shields . | . . . Core Remaining (%) 100 | 100 . . Volleys Fired 137 | 28 34 75 Largest 2 | 2 2 2 Hottest 120 | 40 40 120 Shots Fired 268 | 56 67 145 Gun 264 | 56 66 142 Cannon . | . . . Launcher 4 | . 1 3 Special . | . . . Kinetic 158 | 56 66 36 Thermal 100 | . . 100 Explosive 1 | . 1 . Electromagnetic 9 | . . 9 Robot Hit Streak 28 | 10 16 28 Robot Miss Streak 3 | 2 3 3 Penetration Max . | . . . Secondary Targets 2 | . 1 1 Max Gunslinging Chain 1 | . 1 1 Shots Hit Robots 170 | 29 42 99 Core Hits 70 | 11 24 35 Critical Kills . | . . . Critical Parts Destroyed 1 | . . 1 Critical Strikes 2 | . . 2 Destroy 2 | . . 2 Melee Attacks . | . . . Impact . | . . . Slashing . | . . . Piercing . | . . . Sneak Attacks . | . . . Combat Hostiles . | . . . Follow-up Attacks . | . . . Damage Inflicted 2891 | 384 571 1936 Guns 2728 | 384 571 1773 Cannons . | . . . Explosions 163 | . . 163 Melee . | . . . Ramming . | . . . Kinetic 1500 | 384 571 545 Thermal 1308 | . . 1308 Explosive . | . . . Electromagnetic 83 | . . 83 Impact . | . . . Slashing . | . . . Piercing . | . . . Highest Corruption . | . . . Average Corruption . | . . . Corruption Purged . | . . . Corruption Blocked . | . . . Overload Shots . | . . . Overflow Damage . | . . . Projectiles . | . . . Explosions . | . . . Melee . | . . . Knockbacks . | . . . Impact . | . . . Kinetic . | . . . Secondary . | . . . Self-Inflicted Damage 23 | . . 23 Shots 1 | . . 1 Rammed . | . . . Targets Rammed . | . . . Kicked . | . . . Crushed . | . . . Highest Temperature 32 | . 5 32 Average Temperature 10 | . 2 12 Received Heat Transfer 339 | . 147 192 Siege Activations . | . . . Martial Activations . | . . . Shielding Activations . | . . . Robots Disrupted . | . . . Combat Hostiles . | . . . Robots Corrupted . | . . . Combat Hostiles . | . . . Parts Fried . | . . . Impact Corruptions . | . . . Robots Melted . | . . . Combat Hostiles . | . . . Parts Melted 2 | . . 2 Heat Transferred 1600 | . . 1600 Parts Sabotaged . | . . . Parts Stolen . | . . . Parts Stripped . | . . . Power Chain Reactions . | . . . Alert | -11 -10 -10 ------- Run | Yrd Mat Sub Maximum Alert Level . | . . . Low Security (%) 100 | 100 100 . Level 1 . | . . . Level 2 . | . . . Level 3 . | . . . Level 4 . | . . . Level 5 . | . . . High Security . | . . . Max Security . | . . . Peak Influence 81 | 15 81 . Initial . | . . . Average 14 | 2 16 . Influence Increases 482 | 50 257 175 Destroy 0b10 Robot/C 280 | . 180 100 Destroy 0b10 Robot/NC 75 | 50 25 . Destroy Leader 44 | . 44 . Destroy Structure 8 | . 8 . Lose Combat Pursuer 75 | . . 75 Influence Decreases 465 | 50 257 158 Time Decay 435 | 50 257 128 Lost Part 30 | . . 30 Squads Dispatched 1 | . 1 . Investigation . | . . . Extermination . | . . . Reinforcement 1 | . 1 . Assault . | . . . Garrison . | . . . Intercept . | . . . Searches Triggered . | . . . Construction Impeded . | . . . Haulers Reinforced . | . . . Active Scanning Responses . | . . . Cargo Convoy Interrupts . | . . . Stealth | -11 -10 -10 --------- Run | Yrd Mat Sub Distress Signals 2 | . 2 . Communications Jammed . | . . . Distress Signals . | . . . Times Spotted 37 | . 18 19 Peak Tracking Total 4 | . 3 4 Tactical Retreats 3 | . . 3 Traps | -11 -10 -10 ------- Run | Yrd Mat Sub Traps Triggered . | . . . Indirectly . | . . . Trap Hack Attempts . | . . . Triggered . | . . . Disarmed . | . . . Reprogrammed . | . . . Reused . | . . . Traps Extracted . | . . . Installed . | . . . Triggered . | . . . Machines | -11 -10 -10 ---------- Run | Yrd Mat Sub Machines Disabled 5 | . . 5 Max in Single Turn 3 | . . 3 Machines Repaired . | . . . Machines Dismantled . | . . . Machines Sabotaged . | . . . Overloaded Fab Kills . | . . . Hacking | -11 -10 -10 --------- Run | Yrd Mat Sub Machines Accessed 4 | . 2 2 Terminals 2 | . 2 . Fabricators . | . . . Repair Stations . | . . . Recycling Units . | . . . Scanalyzers . | . . . Garrison Access . | . . . Total Hacks 14 | . 10 4 Successful 10 | . 6 4 Failed 4 | . 4 . Catastrophic . | . . . Database Lockouts . | . . . Manual 6 | . 6 . Terminals 10 | . 10 . Fabricators . | . . . Repair Stations . | . . . Recycling Units . | . . . Scanalyzers . | . . . Garrison Access . | . . . Terminal Hacks 6 | . 2 4 Record 3 | . . 3 Hauler Manifests 1 | . 1 . Zone Layout 1 | . 1 . Proto ID Catalog 1 | . . 1 Fabricator Hacks . | . . . Repair Station Hacks . | . . . Recycling Unit Hacks . | . . . Scanalyzer . | . . . Garrison Access Hacks . | . . . Unauthorized Hacks 4 | . 4 . Terminals 4 | . 4 . Botnet 2 | . 2 . Skim 2 | . 2 . Fabricators . | . . . Repair Stations . | . . . Recycling Units . | . . . Scanalyzers . | . . . Garrison Access . | . . . Data Cores Recovered . | . . . Used . | . . . Hacking Detections 1 | . 1 . Full Trace Events . | . . . Feedback Events . | . . . Feedback Blocked . | . . . Robot Schematics Acquired . | . . . Robots Built . | . . . Authchips . | . . . Time . | . . . Total Robot Build Rating . | . . . Part Schematics Acquired . | . . . Parts Built . | . . . Authchips . | . . . Time . | . . . Total Part Build Rating . | . . . Parts Repaired . | . . . Time . | . . . Parts Recycled . | . . . Recycled Matter . | . . . Retrieved Matter . | . . . Retrieved Components . | . . . Parts Scanalyzed . | . . . Part Schematics Acquired . | . . . Parts Damaged . | . . . Bothacking | -11 -10 -10 ------------ Run | Yrd Mat Sub Used RIF Installer . | . . . Robots Hacked . | . . . Non-combat . | . . . Combat . | . . . Robot Hacks Applied . | . . . Relay Couplers Released . | . . . Fabnet Peak Effective % . | . . . Robots Rewired . | . . . Allies Hacked . | . . . Hacks Repelled . | . . . Allies | -11 -10 -10 -------- Run | Yrd Mat Sub Total Allies . | . . . Largest Group . | . . . Highest-Rated Group . | . . . Highest-Rated Ally . | . . . Total Orders . | . . . Ally Attacks . | . . . Total Damage . | . . . Kills . | . . . Allies Corrupted . | . . . Allies Melted . | . . . Intel | -11 -10 -10 ------- Run | Yrd Mat Sub Active Infowar (turns) 6469 | 28 1304 5137 Seismic 6469 | 28 1304 5137 Robot Analysis Total . | . . . Derelict Logs Recovered 2 | . . 2 Drone Launches . | . . . Drone Recoveries . | . . . Exploration | -11 -10 -10 ------------- Run | Yrd Mat Sub Turns Passed 6771 | 266 1304 5201 Spaces Moved 2328 | 105 528 1695 Core 6 | 6 . . Treads 2322 | 99 528 1695 Legs . | . . . Wheels . | . . . Hover . | . . . Flight . | . . . Fastest Speed 50 | 50 160 240 Average Speed 224 | 153 188 240 Slowest Speed 320 | 160 240 320 Overloaded Moves . | . . . Propulsion Burnouts . | . . . Robots Hopped . | . . . Potential Cave-ins . | . . . Cave-ins Triggered . | . . . Exploration Rate (%) 57 | 6 81 84 Regions Visited 2 Branch Regions 1 Pre-discovered Areas . | . . . Known Exits Taken . | . . . Unknown Exits Taken 2 | 1 1 . Scrap Searched 19 | . . 19 Spaces Dug 9 | . 7 2 Terrain Destroyed 50 | . 7 43 Melee . | . . . Projectile 2 | . . 2 AOE 48 | . 7 41 Terrain Rammed . | . . . Walls Destroyed . | . . . Machines Disabled . | . . . Actions | -11 -10 -10 --------- Run | Yrd Mat Sub Total 3609 | 150 777 2682 Wait 1042 | 5 180 857 Move 2326 | 104 527 1695 Hop . | . . . Pick Up 42 | 3 19 20 Fast Attach 8 | 8 . . Attach 8 | . . 8 Detach 1 | . . 1 Swap 26 | 1 7 18 Drop 19 | 1 10 8 Fire 137 | 28 34 75 Melee . | . . . Ram . | . . . Kick . | . . . Crush . | . . . Escape Stasis . | . . . Rewire . | . . . Trap . | . . . Miscellaneous . | . . . Route ------- -11/Scrapyard -10/Materials (discovered 5 exits: [*Mat x2] / [*Min x2] / *Sub) -10/Subcaves (discovered 1 exit: [*Rec]) History --------- Turn | Location | Event 4 | -11/Scrapyard | Discovered new exit (range 16) 267 | -11/Scrapyard | Entered Materials 315 | -10/Materials | Build established: Mutant 660 | -10/Materials | Discovered new exit (range 13) 840 | -10/Materials | Discovered new exit (range 16) 954 | -10/Materials | Discovered new exit (range 6) 1513 | -10/Materials | Discovered new exit (range 5) 1535 | -10/Materials | Discovered new exit (range 6) 1571 | -10/Materials | Entered Subcaves 2016 | -10/Subcaves | Learned Materials stockpile data 2103 | -10/Subcaves | A swath of the cavern ceiling suddenly collapsed 3210 | -10/Subcaves | Core integrity fell below 50% 3593 | -10/Subcaves | Visited Clippyterm 3600 | -10/Subcaves | Learned Factory stockpile data 4072 | -10/Subcaves | Discovered new exit (range 15) 4595 | -10/Subcaves | Learned Materials machine intel 4606 | -10/Subcaves | Shifting Twisted Machinery released Mak. Hammer 4614 | -10/Subcaves | Shifting Twisted Machinery released Sub. Optics 5209 | -10/Subcaves | Core integrity fell below 20% 5414 | -10/Subcaves | A swath of the cavern ceiling suddenly collapsed 5795 | -10/Subcaves | Visited 4L-MR0's lab 5824 | -10/Subcaves | Found Power Bank 6288 | -10/Subcaves | Shifting Twisted Machinery released Mak. Leg 6290 | -10/Subcaves | Shifting Twisted Machinery released Battle Rifle 6772 | -10/Subcaves | Destroyed by QU-O3Q(R) with Subdweller Machine Gun Last Messages --------------- 05815_ Testing Chamber breached. 05823_ Dropped EM Pulse Gun. 05824_ Acquired Power Bank. 05868_ Subatomizers dissect the Sub. Laser. 05952_ M5-H0A(R) destroyed. 06044_ PT-261(R) suffers critical hit (Destroy). 06053_ Destroyed Scrap Shield. 06056_ PT-261(R) destroyed. 06133_ E7-K1G(R): "OHNO!" 06152_ Lgt. Ion Engine destroyed. 06153_ E7-K1G(R) destroyed. 06183_ Dropped Sub. Laser. 06277_ Subatomizers dissect the Sub. Power Source. Mak. Leg falls loose from the Twisted Machinery. Battle Rifle falls loose from the Twisted Machinery. 06560_ Acquired 20 matter. 06633_ 2Q-KOL(u) deconstructs Twisted Machinery. Map ----- +----------------------------------------------------+ | ??????????#"" ### " * %#??# ### ## # | | ??????????# #/= "#??## ##?# ##"## | | ???????????#"" #%# # ""#???# ##??# """"## | | ???????????#### ###% "##???## #??# #"#"##?### | | ??????????##" #### ###?#### ##??## #"#""#???? | | ??????????# %%### ## ###?##"###"#???? | | ??????????#% ##### [ &# ####"##"##???? | | ??????????## # "# ## """###"#???? | | ???????????# ## ^ ## ######## #"#"##""##??? | | ???????????####" ## ""### #??????######""""#"##?? | | ????????????###" "###### #??##???????####""###?? | | ????????##### " ### ##?# ??????????#""#???? | | ###?????# # ## ??????????#"##???? | | #####?## #### ## ??????###?#"#????? | | """#?# # ## ### ??????# #?####???? | | """#?## ## ##?# ?????## #??""#???? | | ##""#?## # "" R ####??# ###### ###""#??## | | #?????# ##"" ##?????# ## " ""#?# | | ##?????# ### ### ##?????# """## | | ##?######" ####### ##????### " """"" | | ### "##"" # ### #????### " """""" # | | * " " ###### " """"" # | | ### "" # # # " " " | | #?# " ### # #### " "" | | #?# " #?#####??# #### ## "" | | ####" #???????# #@ ####??###### "" ## | | #?### ##???????## #######??????????## ##? | | "#???####?????????###?????????????????# ## | | ""#????????????????????????????????????### | | " ##?????????????????????????????????????# "" | | = #?????????????????????????????????????# "#### | | %* ##?????????????????????????????????????## #?# | | ##??????????????????????????????????????# ## | | #???????????????????????????????????????## # | | ##???????????????????????????????????????# | | #???????????????????????????????????????### # | | ##????????????????????????????????????????## | | * #?????????????????????????????????????????## | | #??????????????????????????????????????????## | | #??????????????????????????????????????????## | | ##??????????????????????????????????????????# | | ##????????###?###########????????????????????# | | ####???????# ###=! ##???????????????????## | | ## ##???#### %! #????????????????????# | | ##### & #???????????????????## | | # ### ##??????????????????## | | #### #?# #???????????????????# "" | | ##### ## "### ##??????????????????# | | # # ##### ## ""## #??????????????????# | | & & #???#####"" ## #?????????????????## " | +----------------------------------------------------+ Best States ------------- Heat Dissipation 25 Energy Generation 15 Energy Capacity 250 Matter Stores 300 Matter Capacity 300 Sight Range 16 Terrain Scan Density 10 Armor Coverage 150 Evasion (%) 40 Recoil Reduction 2 Offensive Hacking 11 Item Schematics ----------------- None Robot Schematics ------------------ None Fabricated ------------ Nothing Repaired ---------- Nothing Alien Tech Used ----------------- None Achievements -------------- None Challenges ------------ None Game ------ Seed ReinforcedNeutronPenetrator Manual? 0 Play Time 00:24:35 Cumulative 480.5 hours Start 2025.08.27 @ 22:00:29 End 2025.08.27 @ 22:20:21 Sessions 1 Manual Loads 0 Difficulty Rogue Special Mode None Game No. 208 Rogue 124 Adventurer 32 Explorer 52 Win Type - Total 54 Types 27/6/9/1/0/2/6/1/1/1 Lore% 95 Gallery% 93 Achievement% 85 Wizard Run 0 Options --------- Layout 2 ASCII 0 Keyboard 0 Movement Mouse Keybinds 1 Fullscreen 1 Font 32/Tamsyn Map View 50x44 Zoom Use 0% Tactical HUD 1 Map Filters NONE Filters NONE Steam 1 RUN: c88ee513-5b0e-435f-93a1-3004e661fb8a